bitfinex-derivatives/quotes_ETHF0:USTF0_20251103
["timestamp","ask_amount","ask_price","bid_price","bid_amount"]
[1762202802516,0.146,3586.8,3586.5,0.50199]
[1762202802715,0.50193,3587.0,3586.6,0.50197]
[1762202802913,0.50192,3587.1,3585.9,1.2552]
[1762202803110,0.50193,3587.0,3586.7,0.50196]
[1762202803315,0.13888809,3587.4,3585.9,1.2552]
[1762202803316,0.50194,3586.9,3586.5,0.50198]
[1762202803619,0.50196,3586.8,3586.5,0.50198]
[1762202804009,0.50194,3586.9,3586.6,0.50198]
[1762202804212,0.50192,3587.0,3586.6,0.50198]
[1762202804412,0.13888809,3587.4,3585.8,1.25522]
[1762202804413,0.50194,3586.9,3586.5,0.50198]
[1762202804816,0.50194,3586.9,3586.6,0.50198]
[1762202805021,0.50195,3586.8,3586.5,0.50199]
[1762202805321,1.39358809,3587.4,3585.4,0.1435]
[1762202805322,0.50193,3587.0,3586.2,1.25508]
[1762202805620,1.39357809,3587.4,3586.6,0.50198]
[1762202805814,0.50196,3586.8,3586.5,0.50199]
[1762202806010,0.13888809,3587.4,3586.2,0.1414]
[1762202806416,0.50194,3586.9,3586.2,0.1414]
[1762202806616,1.25475,3587.2,3586.2,0.64343]
[1762202806822,0.50204,3586.2,3585.9,0.50208]
[1762202807016,1.25496,3586.6,3585.4,0.1435]
[1762202807217,0.50202,3586.3,3586.1,0.50204]
[1762202807620,0.50202,3586.4,3585.7,1.25527]
[1762202807813,1.25511,3586.2,3585.4,0.1435]
[1762202808116,0.50212,3585.6,3585.5,0.50213]
[1762202808316,1.38671,3586.2,3585.2,0.2336]
[1762202808519,0.50215,3585.4,3585.3,0.50216]
[1762202808725,0.63365,3586.2,3585.2,1.25544]
[1762202808920,0.1316,3586.2,3585.2,1.25544]
[1762202809126,0.1316,3586.2,3585.5,1.25534]
[1762202809325,0.50206,3586.0,3585.9,0.50206]
[1762202810026,0.50206,3586.0,3585.4,1.25536]
[1762202810027,0.1316,3586.2,3585.4,0.50214]
[1762202810218,0.63364,3586.2,3585.1,1.25546]
[1762202810422,0.145,3586.8,3585.6,0.1414]
[1762202810730,0.145,3586.8,3586.3,0.50202]
[1762202811122,0.50196,3586.7,3586.4,0.50201]
[1762202811318,0.145,3586.8,3586.5,0.50199]
[1762202811533,0.2346,3586.7,3586.6,0.50198]
[1762202811718,0.13888809,3587.4,3586.3,1.25505]
[1762202811920,0.9291911,3587.3,3586.9,0.50192]
[1762202812125,0.00228809,3587.4,3587.3,0.73548]
[1762202813023,0.145,3588.6,3587.6,1.2546]
[1762202813232,0.2346,3588.4,3588.3,0.50174]
[1762202813826,0.145,3588.6,3587.7,40.8]
[1762202814125,0.73641,3587.8,3587.7,0.00306237]
[1762202814520,0.2346,3587.8,3587.7,0.00306237]
[1762202814823,0.00339579,3588.6,3588.3,0.50174]
[1762202815131,0.50172,3588.5,3588.1,0.50176]
[1762202815522,0.14839579,3588.6,3588.3,0.50174]
[1762202815724,0.00339579,3588.6,3587.7,0.00306237]
[1762202816030,0.14839579,3588.6,3587.7,0.00306237]
[1762202816424,1.25429,3588.5,3587.7,0.00306237]
[1762202816631,0.50178,3588.1,3587.7,0.50488237]
[1762202816831,0.50178,3588.1,3587.8,0.50181]
[1762202817032,0.14839579,3588.6,3587.7,0.00306237]
[1762202817220,0.50176,3588.2,3588.0,0.50177]
[1762202817629,0.50171,3588.5,3587.7,0.00306237]
[1762202817930,0.50509579,3588.6,3588.4,0.50173]
[1762202818124,0.14839579,3588.6,3588.4,0.50172]
[1762202818832,0.14839579,3588.6,3588.4,0.50173]
[1762202818833,0.50509579,3588.6,3588.4,0.50173]
[1762202819030,0.50173,3588.4,3588.1,0.50177]
[1762202819236,1.40266579,3588.6,3587.7,0.00306237]
[1762202819529,0.50171,3588.5,3587.7,0.00306237]
[1762202819730,0.50174,3588.3,3588.1,0.50177]
[1762202820127,0.14839579,3588.6,3587.9,0.5018]
[1762202820339,1.25429,3588.5,3587.7,0.00306237]
[1762202820536,0.14839579,3588.6,3587.7,0.00306237]
[1762202820837,0.2346,3589.5,3589.4,0.50159]
[1762202821235,1.39863,3590.4,3588.8,1.25418]
[1762202821431,1.25393,3589.6,3588.7,40.8]
[1762202821735,0.50166,3588.9,3588.0,10.3734]
[1762202821934,0.00229268,3588.9,3588.0,10.3734]
[1762202822136,0.50173,3588.4,3588.1,41.30177]
[1762202822336,1.25379,3590.0,3588.6,0.64309]
[1762202822540,0.50162,3589.2,3589.1,0.2336]
[1762202822731,0.5016,3589.3,3589.1,0.2336]
[1762202823039,1.39885,3589.8,3588.6,0.1414]
[1762202823234,1.25387,3589.7,3588.8,0.50167]
[1762202823424,1.25391,3589.6,3588.8,0.50167]
[1762202823826,0.50159,3589.4,3589.1,0.50162]
[1762202824029,0.5016,3589.3,3588.8,0.50167]
[1762202824233,1.25394,3589.6,3588.6,0.5017]
[1762202824538,0.50162,3589.2,3588.2,40.8]
[1762202824737,1.25388,3589.7,3588.8,0.50166]
[1762202824940,0.50158,3589.5,3589.2,0.50161]
[1762202825231,0.00306801,3589.8,3589.6,0.50155]
[1762202825628,0.00306801,3589.8,3589.2,0.1414]
[1762202825629,0.50459801,3589.8,3589.2,0.1414]
[1762202825834,0.14806801,3589.8,3588.7,1.2542]
[1762202826032,0.00306801,3589.8,3589.0,1.25412]
[1762202826232,0.00306801,3589.8,3589.7,0.73515]
[1762202826427,8.89015507,3590.8,3589.8,0.1414]
[1762202826637,8.89015507,3590.8,3590.6,0.50141]
[1762202826944,0.3796,3591.0,3590.9,0.50138]
[1762202827238,0.3796,3591.0,3590.3,1.25363]
[1762202827531,0.145,3592.8,3591.6,0.1414]
[1762202827731,0.145,3592.8,3591.1,0.231]
[1762202827942,0.50122,3592.1,3591.1,0.231]
[1762202828133,0.50123,3592.0,3591.4,0.5013]
[1762202828638,0.50123,3592.0,3591.2,40.8]
[1762202828639,0.14799241,3592.8,3591.2,40.8]
[1762202828833,0.50119,3592.3,3591.8,0.50125]
[1762202829038,0.5012,3592.2,3591.8,0.50125]
[1762202829438,0.50123,3592.0,3591.4,0.5013]
[1762202829641,0.50122,3592.1,3591.5,0.50129]
[1762202829838,0.14799241,3592.8,3591.2,40.8]
[1762202830035,1.25297,3592.3,3591.0,0.1414]
[1762202830237,0.50129,3591.6,3591.0,0.64276]
[1762202830545,1.25287,3592.6,3591.0,41.44275]
[1762202830738,0.14799241,3592.8,3591.0,0.64275]
[1762202830739,1.253,3592.2,3591.0,0.64275]
[1762202830940,0.50129,3591.6,3591.0,0.1414]
[1762202831142,0.5013,3591.5,3591.1,0.50134]
[1762202831444,0.50134,3591.2,3590.7,10.8004]
[1762202831641,0.50141,3590.7,3590.3,0.00361684]
[1762202831839,0.50144,3590.5,3590.3,0.00361684]
[1762202832338,0.2346,3590.4,3590.3,0.00361684]
[1762202832943,0.50145,3590.5,3590.3,0.00361684]
[1762202833144,0.50142,3590.7,3590.3,0.00361684]
[1762202833641,0.50142,3590.6,3590.3,0.00361684]
[1762202833838,0.50144,3590.5,3590.3,0.00361684]
[1762202834145,0.2346,3590.4,3590.3,0.00361684]
[1762202836650,0.2346,3590.4,3589.2,0.1414]
[1762202836651,1.25376,3590.1,3589.2,0.1414]
[1762202836943,1.25388,3589.7,3588.7,0.50168]
[1762202837145,0.1449,3589.6,3588.2,2.4464]
[1762202837342,0.1449,3589.6,3588.9,0.50165]
[1762202837540,0.50164,3589.1,3588.9,0.00321187]
[1762202838040,0.2311,3589.0,3588.9,0.00321187]
[1762202840647,1.40196104,3589.6,3588.9,0.00321187]
[1762202840648,0.00313104,3589.6,3589.5,0.72427]
[1762202840841,1.39845,3591.0,3589.6,0.1445]
[1762202841041,1.25346,3590.9,3589.7,0.50154]
[1762202841344,0.1449,3590.3,3589.2,0.50161]
[1762202841542,0.1449,3590.3,3589.0,1.2541]
[1762202841845,0.14841455,3590.3,3589.2,1.25404]
[1762202842043,0.50148,3590.2,3589.9,0.50152]
[1762202842239,0.50149,3590.1,3589.9,0.50152]
[1762202842645,0.50498455,3590.3,3590.0,0.5015]
[1762202842844,0.00351455,3590.3,3589.1,1.25408]
[1762202843045,0.5015,3590.1,3589.9,0.50151]
[1762202843252,0.5015,3590.1,3589.7,0.50154]
[1762202843455,0.5015,3590.1,3589.8,0.50153]
[1762202843852,0.14841455,3590.3,3590.1,0.50148]
[1762202843853,0.00351455,3590.3,3590.1,0.50148]
[1762202845161,0.1284,3591.7,3591.0,0.50136]
[1762202845455,0.1284,3591.7,3589.6,10.4364]
[1762202845456,0.1449,3591.0,3589.6,0.1414]
[1762202845655,0.1449,3591.0,3590.3,0.50146]
[1762202845867,0.50141,3590.7,3590.4,0.50145]
[1762202846060,0.50143,3590.6,3590.3,0.50146]
[1762202846462,0.00311895,3590.7,3589.6,0.1414]
[1762202846655,0.00311895,3590.7,3590.6,0.2227]
[1762202847464,0.00311895,3590.7,3590.6,0.72412]
[1762202850170,0.50118,3592.3,3591.0,0.1416]
[1762202850363,0.97147603,3594.4,3592.6,0.2305]
[1762202850664,0.025,3594.7,3593.8,0.1414]
[1762202850870,0.50087,3594.6,3593.8,0.1414]
[1762202851069,0.00204192,3594.6,3593.8,0.00277063]
[1762202851370,0.1408,3594.4,3593.8,0.00277063]
[1762202851973,0.00204192,3594.6,3593.8,0.00277063]
[1762202852165,0.00204192,3594.6,3594.4,0.50088]
[1762202852670,0.00204192,3594.6,3594.3,0.5009]
[1762202852972,0.00204192,3594.6,3594.4,0.50088]
[1762202853471,0.00204192,3594.6,3593.8,0.00277063]
[1762202853472,0.00204192,3594.6,3594.2,0.50091]
[1762202853673,0.00204192,3594.6,3594.3,0.5009]
[1762202853871,0.00204192,3594.6,3593.8,0.00277063]
[1762202854370,0.50093,3594.2,3593.8,0.00277063]
[1762202854569,0.6417,3594.4,3593.8,0.00277063]
[1762202854764,0.50091,3594.3,3593.8,0.00277063]
[1762202855164,0.6417,3594.4,3593.9,0.50095]
[1762202855370,0.00204192,3594.6,3593.8,0.00277063]
[1762202855671,0.00204192,3594.6,3594.4,0.50088]
[1762202856972,0.00204192,3594.6,3594.5,0.2305]
[1762202858473,0.00204192,3594.6,3593.8,0.14727063]
[1762202858474,0.00204192,3594.6,3594.3,0.5009]
[1762202859177,0.00204192,3594.6,3594.5,0.2305]
[1762202860275,0.1408,3595.9,3594.8,0.50083]
[1762202860474,0.1408,3595.9,3594.5,7.5385]
[1762202860778,1.25178,3595.7,3594.2,10.413]
[1762202860973,1.25188,3595.4,3594.3,0.5009]
[1762202861174,0.50084,3594.8,3594.3,0.5009]
[1762202861374,0.50413238,3594.8,3594.4,0.50089]
[1762202861575,0.00329238,3594.8,3594.2,0.50091]
[1762202861771,0.50088,3594.5,3594.4,0.2305]
[1762202861973,0.00329238,3594.8,3594.5,0.50087]
[1762202862172,0.00329238,3594.8,3594.6,0.50085]
[1762202862468,2.404,3596.2,3595.4,0.50074]
[1762202862675,0.50075,3595.4,3595.3,0.2305]
[1762202862866,0.50073,3595.6,3595.3,0.73126]
[1762202863070,2.404,3596.2,3595.4,0.50075]
[1762202863275,0.50073,3595.6,3595.4,0.50075]
[1762202863574,0.00251159,3596.2,3595.4,1.25189]
[1762202863879,0.00251159,3596.2,3596.0,0.2305]
[1762202863880,0.50065,3596.1,3596.0,0.2305]
[1762202864171,0.00251159,3596.2,3596.0,0.2305]
[1762202864172,0.00251159,3596.2,3596.0,0.73117]
[1762202864374,0.00251159,3596.2,3595.6,10.407]
[1762202864677,0.50068,3595.9,3595.7,0.50071]
[1762202864978,0.50067,3596.0,3595.6,0.50072]
[1762202865278,0.50065,3596.1,3596.0,0.2302]
[1762202865878,0.5007,3595.8,3595.6,0.50072]
[1762202866178,0.5007,3595.8,3595.5,10.405]
[1762202866179,0.50072,3595.6,3595.5,11.13594]
[1762202866381,0.50072,3595.6,3595.2,0.1445]
[1762202866382,0.50071,3595.8,3595.7,0.73091]
[1762202866576,0.50071,3595.8,3595.7,41.53091]
[1762202866768,0.50071,3595.8,3595.2,0.1445]
[1762202866974,0.00251159,3596.2,3595.3,7.589]
[1762202867174,1.25171,3595.9,3595.3,8.08976]
[1762202867379,0.50071,3595.7,3595.6,0.2302]
[1762202868184,0.50077,3595.3,3595.2,0.2302]
[1762202868383,1.25166,3596.1,3595.4,0.73095]
[1762202868677,0.50072,3595.6,3595.5,0.73093]
[1762202869275,0.50065,3596.1,3596.0,0.50066]
[1762202869478,0.00251159,3596.2,3596.1,0.73085]
[1762202869980,0.5006,3596.5,3596.4,0.50061]
[1762202870173,0.5006,3596.5,3596.0,51.18]
[1762202870574,1.25136,3596.9,3596.0,51.18]
[1762202870780,0.50062,3596.4,3596.0,51.18271842]
[1762202870980,0.50058,3596.7,3596.1,1.25162]
[1762202871180,0.00334384,3596.9,3596.1,1.25162]
[1762202871382,0.50056,3596.8,3596.7,0.50056]
[1762202871881,0.6386,3597.3,3597.0,0.50053]
[1762202872082,0.5005,3597.2,3597.0,0.50053]
[1762202872278,0.50051,3597.1,3596.5,1.2515]
[1762202872583,0.50054,3596.9,3596.6,0.1427]
[1762202872776,1.25115,3597.5,3596.8,0.50055]
[1762202872976,0.50053,3597.1,3596.9,0.50054]
[1762202873283,0.50054,3596.9,3596.8,0.2302]
[1762202873678,1.25454137,3597.5,3596.9,0.50054]
[1762202873878,0.50055,3596.8,3596.1,1.25164]
[1762202874086,0.50058,3596.7,3596.6,0.2302]
[1762202874277,0.50056,3596.8,3596.6,0.2302]
[1762202874478,0.50053,3597.0,3596.9,0.50054]
[1762202874778,1.25455137,3597.5,3596.9,0.50054]
[1762202874986,0.00339137,3597.5,3596.9,0.50054]
[1762202875172,0.50049,3597.3,3597.0,0.50051]
[1762202875480,0.50049,3597.3,3596.7,10.351]
[1762202875481,0.50055,3596.8,3596.7,10.351]
[1762202875883,1.2513,3597.1,3596.4,10.35]
[1762202876087,1.2513,3597.1,3596.4,10.5802]
[1762202876288,0.50058,3596.6,3596.5,0.2302]
[1762202876478,0.50058,3596.6,3596.5,0.7308]
[1762202876879,0.5006,3596.5,3596.4,10.35]
[1762202877081,1.25139,3596.8,3596.0,0.00271842]
[1762202877288,0.73835,3596.1,3596.0,0.00271842]
[1762202880181,0.1447,3596.4,3595.0,10.8458]
[1762202880182,0.1447,3595.8,3595.0,10.345]
[1762202880377,0.1447,3595.8,3594.5,0.0701]
[1762202880378,0.50084,3594.8,3594.5,0.0701]
[1762202880578,1.25177,3595.7,3594.0,1.39505]
[1762202880579,1.25202,3595.0,3594.2,0.50091]
[1762202880984,1.25202,3595.0,3594.0,0.1427]
[1762202880985,1.25205,3594.9,3594.0,0.1427]
[1762202881191,1.25205,3594.9,3593.4,0.1427]
[1762202881192,0.1447,3594.5,3593.1,0.50106]
[1762202881490,0.00341416,3594.5,3593.1,0.00198315]
[1762202881688,0.00341416,3594.5,3594.4,0.2302]
[1762202882085,0.00341416,3594.5,3593.8,0.1427]
[1762202882283,0.00341416,3594.5,3594.1,0.50092]
[1762202882478,0.50089,3594.4,3593.8,0.1427]
[1762202882679,0.50093,3594.2,3593.3,10.338]
[1762202882882,0.14811416,3594.5,3593.7,0.50098]
[1762202883085,0.00341416,3594.5,3594.0,0.50093]
[1762202883487,0.50094,3594.1,3593.3,10.338]
[1762202883790,0.50094,3594.1,3593.7,0.50098]
[1762202884191,0.50096,3593.9,3593.5,0.501]
[1762202884496,0.14811416,3594.5,3593.1,0.00198315]
[1762202884497,0.50105,3593.3,3593.1,0.00198315]
[1762202885583,0.2377,3593.2,3593.1,0.00198315]
[1762202885794,0.50104,3593.4,3593.1,0.00198315]
[1762202885991,0.50105,3593.3,3593.1,0.00198315]
[1762202886493,0.50101,3593.6,3593.1,0.00198315]
[1762202886694,0.50103,3593.4,3593.1,0.00198315]
[1762202886891,0.50104,3593.3,3593.1,0.50305315]
[1762202887293,0.50104,3593.3,3593.1,0.00198315]
[1762202889896,0.2377,3593.2,3593.1,0.00198315]
[1762202890795,0.50125,3591.9,3591.7,0.1427]
[1762202890996,0.5013,3591.5,3591.0,0.1427]
[1762202891292,1.25307,3592.0,3590.7,10.322]
[1762202891494,0.50138,3590.9,3590.8,0.2302]
[1762202891700,0.50136,3591.1,3590.8,0.2302]
[1762202891996,0.00247427,3591.1,3590.8,0.73455245]
[1762202892494,0.50137,3591.0,3590.8,0.23317245]
[1762202892897,0.50137,3591.0,3590.8,0.00297245]
[1762202893597,0.00247427,3591.1,3590.9,0.50138]
[1762202893996,0.50382427,3591.1,3590.8,0.00297245]
[1762202894193,0.50383427,3591.1,3590.8,0.00297245]
[1762202894799,0.50137,3591.0,3590.8,0.00297245]
[1762202895501,0.00247427,3591.1,3590.8,0.00297245]
[1762202895699,0.50382427,3591.1,3590.8,0.00297245]
[1762202895902,0.50382427,3591.1,3590.8,0.50436245]
[1762202896205,0.50137,3591.0,3590.8,0.00297245]
[1762202896799,0.00247427,3591.1,3591.0,0.2302]
[1762202897598,0.1447,3593.1,3591.3,1.2533]
[1762202897799,0.1447,3593.1,3591.8,1.25312]
[1762202898003,13.363,3594.3,3592.5,1.25289]
[1762202898298,0.50091,3594.3,3593.8,0.50096]
[1762202898504,0.003535,3594.3,3593.8,0.00312011]
[1762202899002,0.50095,3594.0,3593.8,0.50409011]
[1762202899300,0.003535,3594.3,3593.8,0.00312011]
[1762202899603,0.50092,3594.2,3593.8,0.00312011]
[1762202899997,0.50092,3594.2,3593.9,0.50095]
[1762202900192,0.003535,3594.3,3593.9,0.50095]
[1762202900397,0.504455,3594.3,3593.8,0.00312011]
[1762202900697,0.50094,3594.1,3593.8,0.00312011]
[1762202900899,0.50095,3594.0,3593.8,0.00312011]
[1762202901103,0.003535,3594.3,3593.8,0.00312011]
[1762202901299,0.003535,3594.3,3594.1,0.50092]
[1762202901805,0.003535,3594.3,3594.1,0.50093]
[1762202902002,0.1407,3595.2,3594.2,0.233]
[1762202902298,0.50071,3595.7,3594.2,1.2523]
[1762202902908,0.1407,3595.2,3593.9,4.802]
[1762202903203,0.50086,3594.7,3593.9,10.3]
[1762202903408,0.50086,3594.6,3594.2,0.50091]
[1762202903602,0.14321221,3595.2,3593.9,40.8]
[1762202903798,0.50084,3594.8,3593.9,40.8]
[1762202904108,0.00251221,3595.2,3595.0,0.5008]
[1762202904608,0.50084,3594.8,3594.4,0.50087]
[1762202904906,0.14321221,3595.2,3594.4,0.50088]
[1762202904907,0.50083,3594.9,3594.4,0.50088]
[1762202905098,0.50083,3594.9,3594.5,0.50087]
[1762202905704,1.25202,3595.0,3593.9,40.8]
[1762202905902,1.25206,3594.9,3593.8,0.00312011]
[1762202906203,0.50094,3594.1,3593.8,0.50409011]
[1762202906501,1.25209,3594.8,3593.9,0.50096]
[1762202906703,1.25202,3595.0,3593.8,0.00312011]
[1762202906904,0.50082,3594.9,3593.8,0.00312011]
[1762202907208,0.50086,3594.6,3594.0,0.50093]
[1762202907405,0.64158,3594.5,3594.0,0.50093]
[1762202907706,0.50091,3594.3,3593.8,0.50409011]
[1762202907900,0.50091,3594.3,3593.9,0.50096]
[1762202908108,0.1407,3594.5,3593.8,0.00312011]
[1762202908305,0.14321221,3595.2,3593.9,1.25238]
[1762202908903,0.50088,3594.5,3593.8,0.00312011]
[1762202909105,0.50088,3594.5,3594.3,0.5009]
[1762202910001,0.50088,3594.5,3594.1,0.50092]
[1762202910202,0.2275,3594.3,3593.8,0.00312011]
[1762202910403,0.2275,3594.3,3594.0,0.50094]
[1762202910607,0.1442,3594.5,3593.8,0.00312011]
[1762202910608,0.2275,3593.9,3593.8,0.00312011]
[1762202910808,0.72846,3593.9,3593.8,0.00312011]
[1762202911406,0.2275,3593.9,3593.8,0.00312011]
[1762202911709,0.72846,3593.9,3593.8,0.00312011]
[1762202912112,0.1442,3593.1,3592.3,1.49090403]
[1762202912311,0.64527,3593.1,3592.4,1.25292]
[1762202912507,0.64527,3593.1,3592.0,0.50122]
[1762202912508,0.50117,3592.4,3592.0,0.50122]
[1762202912808,1.39714,3592.4,3591.6,0.50127]
[1762202913112,0.50124,3591.9,3591.6,0.50369917]
[1762202913310,0.50125,3591.8,3591.6,0.00242917]
[1762202914215,0.14665422,3592.4,3592.0,0.50121]
[1762202914410,0.14665422,3592.4,3591.6,0.00242917]
[1762202914715,0.00245422,3592.4,3592.2,0.50119]
[1762202915407,0.00245422,3592.4,3591.7,0.0946]
[1762202915603,0.5012,3592.2,3591.6,0.00242917]
[1762202915814,0.64782422,3592.4,3592.0,0.50121]
[1762202916008,0.00245422,3592.4,3592.2,0.50119]
[1762202916410,0.50362422,3592.4,3591.7,0.0946]
[1762202916612,0.00245422,3592.4,3592.2,0.50119]
[1762202916815,0.00245422,3592.4,3591.6,1.25560917]
[1762202916816,0.5012,3592.2,3591.8,0.50125]
[1762202917010,0.64782422,3592.4,3592.2,0.50119]
[1762202917215,0.00245422,3592.4,3592.2,0.50119]
[1762202917812,0.14665422,3592.4,3591.6,0.00242917]
[1762202918005,0.5012,3592.2,3591.6,0.00242917]
[1762202918211,0.14665422,3592.4,3591.6,0.00242917]
[1762202918616,0.14665422,3592.4,3591.8,0.50124]
[1762202918617,0.50122,3592.0,3591.8,0.50124]
[1762202918816,0.50125,3591.8,3591.6,0.00242917]
[1762202919912,0.50122,3592.0,3591.6,0.00242917]
[1762202920116,0.50123,3592.0,3591.6,0.00242917]
[1762202920312,0.72876,3591.7,3591.6,0.00242917]
[1762202920518,0.87296,3591.7,3591.6,0.00242917]
[1762202922813,0.72876,3591.7,3591.6,0.00242917]
[1762202923018,0.87296,3591.7,3591.6,0.00242917]
[1762202925531,0.14665422,3592.4,3592.3,0.50118]
[1762202925820,0.50119,3592.3,3591.7,1.25317]
[1762202926128,0.50121,3592.1,3591.9,0.50123]
[1762202926428,0.2384,3592.2,3592.1,0.50121]
[1762202926618,0.50118,3592.3,3592.1,0.50121]
[1762202926822,0.50119,3592.2,3592.1,0.50121]
[1762202927230,0.50123,3592.0,3591.6,0.00242917]
[1762202927424,0.50123,3592.0,3591.8,0.50124]
[1762202927620,0.1338,3592.2,3591.6,1.25562917]
[1762202927826,0.50118,3592.3,3592.2,0.50119]
[1762202928128,0.50118,3592.3,3592.0,0.50121]
[1762202928725,0.50123,3592.0,3591.7,0.50125]
[1762202929025,0.50121,3592.1,3592.0,0.50122]
[1762202929228,0.50122,3592.0,3591.8,0.50124]
[1762202929428,0.50121,3592.1,3591.9,0.50124]
[1762202929629,0.50121,3592.1,3592.0,0.50122]
[1762202929831,0.00245422,3592.4,3592.3,0.73138]
[1762202930130,0.50118,3592.3,3592.0,0.50122]
[1762202930331,0.50121,3592.1,3591.6,0.00242917]
[1762202930532,0.50123,3592.0,3591.8,0.50124]
[1762202930726,0.50124,3591.9,3591.8,0.50124]
[1762202931024,0.50126,3591.7,3591.6,0.00242917]
[1762202931225,0.73966,3591.7,3591.6,0.00242917]
[1762202932430,0.50138,3590.9,3589.7,1.5187619]
[1762202932626,1.25348,3590.8,3589.8,0.22537777]
[1762202932832,0.1338,3591.0,3589.7,0.02785787]
[1762202932833,0.50149,3590.1,3589.7,0.02785787]
[1762202933026,0.50149,3590.1,3589.9,0.50151]
[1762202933228,0.50149,3590.1,3589.7,0.02785787]
[1762202933229,0.50147,3590.3,3589.8,0.50152]
[1762202933429,1.25345,3590.9,3589.8,0.00298013]
[1762202933624,0.1338,3591.0,3590.2,0.50147]
[1762202933828,0.2384,3590.7,3590.5,0.50143]
[1762202934031,0.50135,3591.2,3591.0,0.50136]
[1762202934230,0.50135,3591.2,3589.8,2.65034013]
[1762202934231,0.2384,3591.2,3591.1,0.50134]
[1762202935129,0.1338,3591.6,3590.9,1.25345]
[1762202935435,0.1338,3592.2,3591.9,0.50123]
[1762202936029,0.50122,3592.0,3591.1,1.25338]
[1762202936235,0.1338,3592.2,3591.2,1.25334]
[1762202936438,0.50122,3592.0,3591.6,0.50127]
[1762202936625,0.50124,3591.9,3591.6,0.50128]
[1762202936826,0.50139,3590.8,3590.2,1.99237403]
[1762202937033,0.1338,3591.0,3590.0,1.25376]
[1762202937236,0.1338,3591.0,3590.6,0.50142]
[1762202937440,0.5014,3590.8,3590.0,1.49090403]
[1762202937640,0.5014,3590.8,3590.6,0.50142]
[1762202937842,0.50139,3590.9,3590.7,0.5014]
[1762202938045,0.1338,3591.0,3590.8,0.50139]
[1762202938637,0.63517,3591.0,3590.8,0.50139]
[1762202938839,3.9578,3591.7,3590.3,1.38574]
[1762202939141,0.50135,3591.1,3590.3,1.38574]
[1762202939338,0.50135,3591.1,3590.9,0.50137]
[1762202939840,0.1338,3591.0,3590.2,1.49090403]
[1762202940041,0.1338,3591.0,3590.1,1.49090403]
[1762202940233,0.1338,3591.0,3590.3,1.49090403]
[1762202940432,0.1338,3591.0,3590.3,0.50145]
[1762202940637,0.50149,3590.1,3589.9,1.49090403]
[1762202940847,0.1338,3590.3,3589.8,1.49388416]
[1762202941042,0.1338,3590.3,3589.8,0.00298013]
[1762202941243,0.50151,3590.0,3589.8,0.50450013]
[1762202941442,0.63526,3590.3,3589.8,0.00298013]
[1762202941646,0.50147,3590.2,3590.1,0.50149]
[1762202941838,0.1338,3591.0,3589.8,0.00298013]
[1762202942039,0.1338,3591.0,3590.4,0.50144]
[1762202942346,0.50143,3590.5,3590.3,0.50146]
[1762202942546,0.50139,3590.8,3590.5,0.50142]
[1762202942740,0.50139,3590.8,3590.6,0.50142]
[1762202943044,0.1338,3591.0,3590.9,0.50137]
[1762202943439,0.1338,3591.0,3590.3,1.49090403]
[1762202943637,0.50146,3590.3,3590.2,1.49090403]
[1762202943836,1.25345,3590.9,3589.8,1.49388416]
[1762202944145,0.50147,3590.3,3590.1,0.50149]
[1762202944644,0.50145,3590.4,3590.2,0.50147]
[1762202944944,0.1338,3591.0,3590.2,1.25365]
[1762202945149,0.63516,3591.0,3590.8,0.50139]
[1762202945539,0.63516,3591.0,3590.3,1.25365]
[1762202945742,0.1338,3591.0,3590.1,1.49090403]
[1762202946041,1.25348,3590.8,3590.0,1.99240403]
[1762202946241,0.50147,3590.3,3590.2,0.50147]
[1762202946443,0.50146,3590.3,3590.0,1.49090403]
[1762202946644,0.50146,3590.4,3590.3,0.50146]
[1762202946843,0.50149,3590.1,3590.0,0.2302]
[1762202947042,0.50147,3590.3,3590.0,0.2302]
[1762202947246,1.25348,3590.8,3589.9,1.49090403]
[1762202947545,0.50146,3590.4,3589.9,1.49090403]
[1762202947747,1.25348,3590.8,3589.9,1.49090403]
[1762202947946,0.1338,3591.0,3589.9,2.74467403]
[1762202948243,0.50146,3590.4,3590.2,0.50147]
[1762202948448,0.1338,3591.0,3590.5,0.50142]
[1762202948643,0.50142,3590.6,3590.5,0.50142]
[1762202948849,0.1338,3591.0,3590.3,1.25365]
[1762202949046,0.63516,3591.0,3590.3,1.25365]
[1762202949249,0.50136,3591.0,3590.8,0.50138]
[1762202949445,1.25331,3591.3,3590.7,0.5014]
[1762202949651,1.25328,3591.4,3590.7,0.5014]
[1762202949948,0.50137,3591.0,3590.8,0.50138]
[1762202950350,1.25328,3591.4,3590.4,0.143]
[1762202950751,3.824,3591.6,3591.0,0.50136]
[1762202950945,5.0772,3591.6,3591.0,0.50136]
[1762202951147,0.50135,3591.1,3591.0,0.50136]
[1762202951347,5.0772,3591.6,3590.4,1.63390403]
[1762202951647,0.50138,3590.9,3590.8,0.50139]
[1762202951847,0.50134,3591.2,3591.0,0.50136]
[1762202952045,0.50136,3591.0,3590.9,0.50137]
[1762202952243,1.25327,3591.4,3590.4,0.143]
[1762202952448,3.824,3591.6,3590.6,0.2302]
[1762202952449,0.50142,3590.7,3590.6,0.2302]
[1762202952847,0.50139,3590.8,3590.6,0.73162]
[1762202953146,0.50139,3590.8,3590.7,0.5014]
[1762202953346,0.50143,3590.5,3590.3,1.49090403]
[1762202953544,0.87364,3590.4,3590.2,1.49090403]
[1762202953744,0.50144,3590.4,3590.0,1.49090403]
[1762202954045,0.50146,3590.4,3590.0,1.49090403]
[1762202954240,0.50144,3590.4,3590.1,0.50149]
[1762202954450,0.5015,3590.1,3589.9,1.49090403]
[1762202954650,1.25352,3590.7,3590.1,0.50148]
[1762202954845,3.824,3591.4,3590.4,0.1386]
[1762202955053,0.50128,3591.6,3590.7,1.25352]